bitfinex/quotes_BTCUSD_20230403
["timestamp","ask_amount","ask_price","bid_price","bid_amount"]
[1680495590882,0.53191557,27659.0,27658.0,0.01465549]
[1680495591751,0.55301157,27659.0,27658.0,0.01465549]
[1680495592884,0.53191557,27659.0,27658.0,0.01465549]
[1680495593123,0.55318357,27659.0,27658.0,0.01465549]
[1680495593340,0.53191557,27659.0,27658.0,0.01465549]
[1680495593563,0.55222557,27659.0,27658.0,0.01465549]
[1680495594231,0.53191557,27659.0,27658.0,0.01465549]
[1680495594480,0.53191557,27659.0,27658.0,0.03273249]
[1680495595964,0.53191557,27659.0,27658.0,0.01465549]
[1680495596615,0.55298557,27659.0,27658.0,0.01465549]
[1680495596782,0.53191557,27659.0,27658.0,0.01465549]
[1680495597000,0.55375257,27659.0,27658.0,0.01465549]
[1680495597216,0.55375257,27659.0,27658.0,0.01750621]
[1680495597622,0.53191557,27659.0,27658.0,0.01750621]
[1680495598207,0.53082761,27659.0,27658.0,0.01750621]
[1680495600516,0.53082761,27659.0,27658.0,0.05646021]
[1680495600748,0.53082761,27659.0,27658.0,0.01750621]
[1680495602683,0.53082761,27659.0,27658.0,0.71463427]
[1680495602900,0.53082761,27659.0,27658.0,0.42815718]
[1680495603593,0.50382761,27659.0,27658.0,0.42815718]
[1680495603828,0.50982761,27659.0,27658.0,0.42815718]
[1680495604053,0.50982761,27659.0,27658.0,0.07318221]
[1680495604275,0.50982761,27659.0,27658.0,0.05510521]
[1680495604502,0.50982761,27659.0,27658.0,0.03570321]
[1680495604757,0.50382761,27659.0,27658.0,0.07351121]
[1680495604978,0.50382761,27659.0,27658.0,0.07295221]
[1680495605424,0.50982761,27659.0,27658.0,0.07296821]
[1680495605640,0.50982761,27659.0,27658.0,0.03576321]
[1680495605887,0.50982761,27659.0,27658.0,0.03558321]
[1680495606308,0.50982761,27659.0,27658.0,0.07392621]
[1680495606535,0.50982761,27659.0,27658.0,0.07410621]
[1680495606753,0.50982761,27659.0,27658.0,0.07456321]
[1680495608552,0.50982761,27659.0,27658.0,0.07492421]
[1680495609220,0.45652761,27659.0,27658.0,0.07474421]
[1680495611213,0.45652761,27659.0,27658.0,0.51635235]
[1680495611431,0.45652761,27659.0,27658.0,0.51653235]
[1680495612096,0.45652761,27659.0,27658.0,0.59483235]
[1680495613196,0.45652761,27659.0,27658.0,0.72477939]
[1680495613420,0.45624254,27659.0,27658.0,0.72477939]
[1680495613854,0.006,27659.0,27658.0,0.72477939]
[1680495614086,0.006,27659.0,27658.0,1.18939749]
[1680495614306,0.00574344,27659.0,27658.0,1.23257954]
[1680495615200,0.45048955,27662.0,27658.0,1.23257954]
[1680495615430,0.45048955,27662.0,27661.0,0.0778]
[1680495615658,0.45048955,27662.0,27661.0,0.90429797]
[1680495615875,0.45048955,27662.0,27661.0,0.82649797]
[1680495616315,0.45048955,27662.0,27661.0,0.44818401]
[1680495617036,0.45148955,27662.0,27661.0,0.45218401]
[1680495617692,0.45048955,27662.0,27661.0,0.44818401]
[1680495617900,0.45148955,27662.0,27661.0,0.45218401]
[1680495618326,0.45148955,27662.0,27661.0,0.06105804]
[1680495618552,0.52878955,27662.0,27661.0,0.00168604]
[1680495618768,0.55120255,27662.0,27661.0,0.00568604]
[1680495620122,0.52878955,27662.0,27661.0,0.00268604]
[1680495620378,0.52878955,27662.0,27659.0,0.018077]
[1680495620601,0.55578955,27662.0,27659.0,0.018077]
[1680495621476,0.52878955,27662.0,27660.0,0.00181674]
[1680495621698,0.52878955,27662.0,27660.0,0.01989274]
[1680495621920,0.54778955,27662.0,27660.0,0.01989274]
[1680495622823,0.52878955,27662.0,27660.0,0.01989274]
[1680495623040,0.55478955,27662.0,27660.0,0.01989274]
[1680495623259,0.52878955,27662.0,27660.0,0.01989274]
[1680495623497,0.55578955,27662.0,27660.0,0.01989274]
[1680495630438,0.108406,27661.0,27660.0,0.00181674]
[1680495630667,0.40865301,27661.0,27660.0,0.00181674]
[1680495630876,0.45865301,27661.0,27660.0,0.00181674]
[1680495631313,0.0778,27660.0,27658.0,0.01501649]
[1680495631516,0.098948,27659.0,27658.0,0.01501649]
[1680495631935,0.52848955,27659.0,27658.0,0.01501649]
[1680495632144,0.54932655,27659.0,27658.0,0.01501649]
[1680495632352,0.52848955,27659.0,27658.0,0.01709467]
[1680495632557,0.54748955,27659.0,27658.0,0.01709467]
[1680495632765,0.56940155,27659.0,27658.0,0.01709467]
[1680495633625,0.55040155,27659.0,27658.0,0.01709467]
[1680495634679,0.56940155,27659.0,27658.0,0.01709467]
[1680495634889,0.55040155,27659.0,27658.0,0.01709467]
[1680495635099,0.56940155,27659.0,27658.0,0.01709467]
[1680495635307,0.55040155,27659.0,27658.0,0.01501649]
[1680495635513,0.57540155,27659.0,27658.0,0.01501649]
[1680495635726,0.62540155,27659.0,27658.0,0.01501649]
[1680495636358,0.63390155,27659.0,27658.0,0.01501649]
[1680495636765,0.58390155,27659.0,27658.0,0.01501649]
[1680495637408,0.55890155,27659.0,27658.0,0.01501649]
[1680495637858,0.99087652,27659.0,27658.0,0.01501649]
[1680495638292,0.94087652,27659.0,27658.0,0.01501649]
[1680495638508,0.94056793,27659.0,27658.0,0.01501649]
[1680495639142,0.94042261,27659.0,27658.0,0.01501649]
[1680495642242,0.94066962,27659.0,27658.0,0.01501649]
[1680495642505,0.94042261,27659.0,27658.0,0.01501649]
[1680495643593,0.91342261,27659.0,27658.0,0.01501649]
[1680495643812,0.94042261,27659.0,27658.0,0.01501649]
[1680495648010,0.91851061,27659.0,27658.0,0.01501649]
[1680495648474,0.93969261,27659.0,27658.0,0.01501649]
[1680495651131,0.56353564,27659.0,27658.0,0.01501649]
[1680495652193,0.48574254,27659.0,27658.0,0.01501649]
[1680495652399,0.48574254,27659.0,27658.0,0.01709467]
[1680495652609,0.47724254,27659.0,27658.0,0.01709467]
[1680495652813,0.45024254,27659.0,27658.0,0.01709467]
[1680495653020,0.47724254,27659.0,27658.0,0.01709467]
[1680495653648,0.47724254,27659.0,27658.0,0.03517167]
[1680495654477,0.47724254,27659.0,27658.0,0.01709467]
[1680495655970,0.49809454,27659.0,27658.0,0.01709467]
[1680495656430,0.49809454,27659.0,27658.0,0.01501649]
[1680495658244,0.47724254,27659.0,27658.0,0.01501649]
[1680495658931,0.94018851,27659.0,27658.0,0.01501649]
[1680495659135,0.93938951,27659.0,27658.0,0.01501649]
[1680495660251,1.4152787,27659.0,27658.0,0.01501649]
[1680495660474,1.4652787,27659.0,27658.0,0.01501649]
[1680495661389,1.8452787,27659.0,27658.0,0.01501649]
[1680495661828,1.8182787,27659.0,27658.0,0.01501649]
[1680495662041,1.8452787,27659.0,27658.0,0.01501649]
[1680495662263,1.8182787,27659.0,27658.0,0.01501649]
[1680495662487,1.8452787,27659.0,27658.0,0.01501649]
[1680495662737,1.7952787,27659.0,27658.0,0.01501649]
[1680495662973,1.33570533,27659.0,27658.0,0.01501649]
[1680495663396,1.74768951,27659.0,27658.0,0.01501649]
[1680495663825,1.72068951,27659.0,27658.0,0.01501649]
[1680495664385,1.67068951,27659.0,27658.0,0.01501649]
[1680495665096,1.69768951,27659.0,27658.0,0.01501649]
[1680495666447,1.31768951,27659.0,27658.0,0.01501649]
[1680495666711,2.74768951,27659.0,27658.0,0.01501649]
[1680495667365,2.69768951,27659.0,27658.0,0.01501649]
[1680495671120,2.87845951,27659.0,27658.0,0.01501649]
[1680495672653,3.17561947,27659.0,27658.0,0.01501649]
[1680495672868,3.29629249,27659.0,27658.0,0.01501649]
[1680495673086,4.51119132,27659.0,27658.0,0.01501649]
[1680495675328,3.20997853,27659.0,27658.0,0.01501649]
[1680495675559,4.51119577,27659.0,27658.0,0.01501649]
[1680495675781,4.6685016,27659.0,27658.0,0.01501649]
[1680495676010,4.68485693,27659.0,27658.0,1.649e-05]
[1680495676229,4.55553092,27659.0,27658.0,1.649e-05]
[1680495676466,5.51177131,27659.0,27658.0,1.649e-05]
[1680495676686,5.51177131,27659.0,27651.0,0.0216]
[1680495676687,0.38,27655.0,27651.0,0.0216]
[1680495676932,0.0778,27652.0,27651.0,0.0216]
[1680495677154,1.04605938,27652.0,27651.0,0.0216]
[1680495677382,1.74540838,27652.0,27651.0,0.02172]
[1680495677601,1.82370838,27652.0,27651.0,0.0216]
[1680495677828,3.78058581,27652.0,27651.0,0.0216]
[1680495678069,3.78058581,27652.0,27651.0,0.0166]
[1680495678070,1.78058581,27652.0,27651.0,0.0166]
[1680495678291,3.76256999,27652.0,27651.0,0.0166]
[1680495679178,3.78956999,27652.0,27651.0,0.0166]
[1680495679394,3.76256999,27652.0,27651.0,0.0166]
[1680495679636,3.94616999,27652.0,27651.0,0.0166]
[1680495680508,3.96418581,27652.0,27651.0,0.0166]
[1680495680725,4.96418581,27652.0,27651.0,0.0166]
[1680495681165,4.93718581,27652.0,27651.0,0.0166]
[1680495682059,4.96418581,27652.0,27651.0,0.0166]
[1680495682305,4.79758581,27652.0,27651.0,0.0166]
[1680495682521,4.82458581,27652.0,27651.0,0.0166]
[1680495682743,4.79758581,27652.0,27651.0,0.0166]
[1680495683195,4.87834029,27652.0,27651.0,0.0166]
[1680495683416,3.85134029,27652.0,27651.0,0.0166]
[1680495683638,3.87834029,27652.0,27651.0,0.0166]
[1680495683829,3.85134029,27652.0,27651.0,0.0166]
[1680495684068,4.20914029,27652.0,27651.0,0.0166]
[1680495684284,4.38075116,27652.0,27651.0,0.0166]
[1680495684502,4.20914029,27652.0,27651.0,0.0166]
[1680495684731,4.20914029,27652.0,27651.0,0.00531502]
[1680495685177,4.18214029,27652.0,27651.0,0.00531502]
[1680495685394,4.19112447,27652.0,27651.0,0.00531502]
[1680495685646,4.16412447,27652.0,27651.0,0.00531502]
[1680495685866,4.89112447,27652.0,27651.0,0.00531502]
[1680495687671,4.19112447,27652.0,27651.0,0.00531502]
[1680495689936,3.86052447,27652.0,27651.0,0.00531502]
[1680495691470,3.86052447,27652.0,27651.0,0.11916901]
[1680495691471,2.55206402,27652.0,27651.0,0.11916901]
[1680495691690,0.49830954,27652.0,27651.0,0.00531502]
[1680495691915,0.47724254,27652.0,27651.0,0.00531502]
[1680495692170,0.45024254,27652.0,27651.0,0.00531502]
[1680495692399,0.49824954,27652.0,27651.0,0.00531502]
[1680495692614,0.47124954,27652.0,27651.0,0.0083085]
[1680495692841,0.49824954,27652.0,27651.0,0.0083085]
[1680495693059,0.79824954,27652.0,27651.0,0.0083085]
[1680495693999,0.77124954,27652.0,27651.0,0.0083085]
[1680495694228,0.79824954,27652.0,27651.0,0.0083085]
[1680495694445,0.77124954,27652.0,27651.0,0.0083085]
[1680495694668,0.79824954,27652.0,27651.0,0.0083085]
[1680495695533,0.79824954,27652.0,27651.0,0.00824135]
[1680495697824,0.79824954,27652.0,27651.0,0.00324135]
[1680495698495,0.79824954,27652.0,27651.0,0.02132335]
[1680495698717,0.47724254,27652.0,27651.0,0.10812335]
[1680495699387,0.47724254,27652.0,27651.0,0.14513035]
[1680495699609,0.47724254,27652.0,27651.0,0.50028532]
[1680495700537,0.47724254,27652.0,27651.0,0.55028532]
[1680495700970,0.47724254,27652.0,27651.0,0.50028532]
[1680495701220,0.47724254,27652.0,27651.0,0.55028532]
[1680495701474,0.027,27652.0,27651.0,0.50028532]
[1680495701923,0.027,27652.0,27651.0,0.70028532]
[1680495702144,0.027,27652.0,27651.0,0.75028532]
[1680495703466,0.02670065,27652.0,27651.0,0.70010532]
[1680495703717,0.02670065,27652.0,27651.0,1.08010532]
[1680495704384,0.02643124,27652.0,27651.0,1.08010532]
[1680495705478,0.02618877,27652.0,27651.0,1.08010532]
[1680495705691,0.02618877,27652.0,27651.0,1.16740532]
[1680495706341,0.02597054,27652.0,27651.0,1.16659409]
[1680495707410,0.02577414,27652.0,27651.0,1.16659409]
[1680495708076,0.02577414,27652.0,27651.0,1.21659409]
[1680495708518,0.02559738,27652.0,27651.0,1.21659409]
[1680495709389,0.02543829,27652.0,27651.0,1.2160027]
[1680495710326,0.02529511,27652.0,27651.0,1.2160027]
[1680495711419,0.02516625,27652.0,27651.0,1.2160027]
[1680495711643,0.02516625,27652.0,27651.0,1.1660027]
[1680495712082,0.02516625,27652.0,27651.0,1.0787027]
[1680495712306,0.02505028,27652.0,27651.0,1.07827157]
[1680495713452,0.0249459,27652.0,27651.0,1.07827157]
[1680495714319,0.02485196,27652.0,27651.0,1.12827157]
[1680495714536,0.02485196,27652.0,27651.0,1.07827157]
[1680495715397,0.02476742,27652.0,27651.0,1.07795728]
[1680495716500,0.02469133,27652.0,27651.0,1.07795728]
[1680495717366,0.02462285,27652.0,27651.0,1.07795728]
[1680495718251,0.02462285,27652.0,27651.0,1.12795728]
[1680495718478,0.02456122,27652.0,27651.0,1.07772817]
[1680495725494,0.02456122,27652.0,27651.0,1.09772817]
[1680495728861,0.02456122,27652.0,27651.0,1.12478216]
[1680495729082,0.02456122,27652.0,27651.0,1.09822817]
[1680495729762,0.02456122,27652.0,27651.0,1.14822817]
[1680495732031,0.02456122,27652.0,27651.0,1.09822817]
[1680495736058,0.02456122,27652.0,27651.0,1.01092817]
[1680495737130,0.02456122,27652.0,27651.0,1.09752392]
[1680495737566,0.02456122,27652.0,27651.0,1.14752392]
[1680495738266,0.02456122,27652.0,27651.0,1.09752392]
[1680495738701,0.02456122,27652.0,27651.0,1.14752392]
[1680495738918,0.02456122,27652.0,27651.0,1.09752392]
[1680495739378,0.02456122,27652.0,27651.0,1.14082179]
[1680495739595,0.02456122,27652.0,27651.0,1.19082179]
[1680495740937,0.02456122,27652.0,27651.0,1.19057021]
[1680495741381,0.02456122,27652.0,27651.0,1.23411967]
[1680495741382,0.02447637,27652.0,27651.0,1.23411967]
[1680495743205,0.02447637,27652.0,27651.0,1.27748853]
[1680495745175,0.02447637,27652.0,27651.0,1.06092817]
[1680495746052,0.02447637,27652.0,27651.0,1.14822817]
[1680495746278,0.02447637,27652.0,27651.0,1.44822817]
[1680495746506,0.02447637,27652.0,27651.0,1.71564496]
[1680495747184,0.00024701,27658.0,27657.0,0.2]
[1680495747403,0.00024701,27658.0,27657.0,1.2994155]
[1680495747636,0.00024701,27658.0,27657.0,1.18556151]
[1680495748076,0.00024701,27658.0,27657.0,1.09899097]
[1680495748559,0.00124701,27658.0,27657.0,1.19356151]
[1680495748777,0.00124701,27658.0,27657.0,1.10699097]
[1680495748992,0.00124701,27658.0,27657.0,1.19356151]
[1680495749436,0.00124701,27658.0,27657.0,1.4418977]
[1680495753304,0.00124701,27658.0,27657.0,1.57175352]
[1680495754034,0.00124701,27658.0,27657.0,1.4418977]
[1680495764087,0.00124701,27658.0,27657.0,1.48518298]
[1680495764528,0.001,27658.0,27657.0,1.48518298]
[1680495765386,0.001,27658.0,27657.0,1.57172903]
[1680495765622,0.001,27658.0,27657.0,1.32339471]
[1680495766284,0.001,27658.0,27657.0,1.23684679]
[1680495766743,0.001,27658.0,27657.0,1.3233902]
[1680495766962,0.001,27658.0,27657.0,1.23684679]
[1680495768045,0.001,27658.0,27657.0,1.23696679]
[1680495768260,0.001,27658.0,27657.0,1.23702679]
[1680495769141,0.001,27658.0,27657.0,1.41016788]
[1680495769980,0.001,27658.0,27657.0,1.41011277]
[1680495770204,0.001,27658.0,27657.0,1.41011356]
[1680495771146,0.001,27658.0,27657.0,1.28031206]
[1680495771372,0.001,27658.0,27657.0,1.41011256]
[1680495771595,0.001,27658.0,27657.0,1.33031206]
[1680495771824,0.001,27658.0,27657.0,1.46567097]
[1680495772050,0.001,27658.0,27657.0,1.45717097]
[1680495772272,0.001,27658.0,27657.0,1.54447097]
[1680495776019,0.001,27658.0,27657.0,1.55297097]
[1680495778273,0.001,27658.0,27657.0,1.46567097]
[1680495779371,0.001,27658.0,27657.0,1.8126826]
[1680495780907,0.001,27658.0,27657.0,2.27611497]
[1680495782594,0.56845631,27659.0,27657.0,2.27611497]
[1680495782765,0.46858726,27659.0,27658.0,1.16853397]
[1680495783134,0.46858726,27659.0,27658.0,1.23679097]
[1680495783135,0.41973554,27659.0,27658.0,1.23679097]
[1680495783556,0.21973554,27659.0,27658.0,1.23679097]
[1680495783767,0.21973554,27659.0,27658.0,1.23661097]
[1680495784415,0.22073554,27659.0,27658.0,1.23661097]
[1680495784636,0.21973554,27659.0,27658.0,1.23661097]
[1680495784837,0.22073554,27659.0,27658.0,1.25861097]
[1680495787476,0.00024061,27661.0,27660.0,0.58]
[1680495787696,0.00024061,27666.0,27665.0,0.38]
[1680495787913,0.00024061,27666.0,27665.0,1.58228936]
[1680495788137,0.00024061,27667.0,27665.0,1.46843537]
[1680495788356,0.00024061,27667.0,27666.0,0.77293897]
[1680495788578,0.00024061,27667.0,27666.0,0.84101097]
[1680495789021,0.00024061,27667.0,27666.0,0.92739537]
[1680495789240,0.01890062,27669.0,27666.0,1.21364351]
[1680495789462,0.001,27667.0,27666.0,0.78970454]
[1680495789687,0.001,27667.0,27666.0,0.74085814]
[1680495790201,0.01890062,27669.0,27666.0,0.77185814]
[1680495790418,0.01890062,27669.0,27668.0,0.73497497]
[1680495790633,0.01890062,27669.0,27668.0,0.90208697]
[1680495790850,0.01890062,27669.0,27668.0,1.20226697]
[1680495791489,0.01990062,27669.0,27668.0,1.22526697]
[1680495791928,0.01890062,27669.0,27668.0,1.25226697]
[1680495792148,0.01990062,27669.0,27668.0,1.27526697]
[1680495792584,0.01990062,27669.0,27668.0,1.22526697]
[1680495793019,0.01990062,27669.0,27668.0,1.22102233]
[1680495794384,0.01990062,27669.0,27668.0,1.27102233]
[1680495794824,0.01990062,27669.0,27668.0,1.27952233]
[1680495795070,0.01990062,27669.0,27668.0,1.36682233]
[1680495796153,0.01990062,27669.0,27668.0,1.27952233]
[1680495797686,0.01990062,27669.0,27668.0,1.27970233]
[1680495798354,0.01990062,27669.0,27668.0,1.27952233]
[1680495801583,0.01990062,27669.0,27668.0,1.22102233]
[1680495802460,0.01990062,27669.0,27668.0,1.27102233]
[1680495805566,0.01990062,27669.0,27668.0,1.22102233]
[1680495806205,0.01990062,27669.0,27668.0,1.41022233]
[1680495806424,0.01990062,27669.0,27668.0,1.46022233]
[1680495806639,0.01990062,27669.0,27668.0,1.53812233]
[1680495809543,0.01990062,27669.0,27668.0,1.22120233]
[1680495812886,0.01990062,27669.0,27668.0,1.27120233]
[1680495813079,0.01990062,27669.0,27668.0,1.22120233]
[1680495815543,0.01982722,27669.0,27668.0,1.22114233]
[1680495815796,0.01982722,27669.0,27668.0,1.22102233]
[1680495816018,0.01982722,27669.0,27668.0,1.30740673]
[1680495818169,0.01982722,27669.0,27668.0,1.35059893]
[1680495818355,0.01982722,27669.0,27668.0,1.43685607]
[1680495818569,0.01982722,27669.0,27668.0,1.35059893]
[1680495820147,0.01982722,27669.0,27668.0,1.52336773]
[1680495820362,0.01982722,27669.0,27668.0,1.52322754]
[1680495820617,0.01982722,27669.0,27668.0,1.40229113]
[1680495821062,0.01982722,27669.0,27668.0,1.53172768]
[1680495821250,0.01982722,27669.0,27668.0,1.40229113]
[1680495822142,0.01982722,27669.0,27668.0,1.44548333]
[1680495822542,0.01982722,27669.0,27668.0,1.61815426]
[1680495822787,0.01982722,27669.0,27668.0,1.44548333]
[1680495824089,0.01982722,27669.0,27668.0,1.27952233]
[1680495824270,0.01982722,27669.0,27668.0,1.22952233]
[1680495824983,0.01982722,27669.0,27668.0,1.27952233]
[1680495825405,0.01882722,27669.0,27668.0,1.20652233]
[1680495825642,0.01882722,27669.0,27668.0,1.23452233]
[1680495825856,0.01882722,27669.0,27668.0,1.41523233]
[1680495826061,0.01882722,27669.0,27668.0,1.67438681]
[1680495826460,0.01882722,27669.0,27668.0,1.64638681]
[1680495826689,0.01882722,27669.0,27668.0,1.67438681]
[1680495827854,0.01882722,27669.0,27668.0,1.64638681]
[1680495828227,0.01882722,27669.0,27668.0,1.67438681]
[1680495829401,0.01882722,27669.0,27668.0,1.76105681]
[1680495830970,0.01882722,27669.0,27668.0,1.73305681]
[1680495831196,0.01882722,27669.0,27668.0,1.76105681]
[1680495831428,0.01882722,27669.0,27668.0,1.50190233]
[1680495832028,0.01882722,27669.0,27668.0,1.41520233]
[1680495832446,0.01882722,27669.0,27668.0,1.46520233]
[1680495833309,0.01882722,27669.0,27668.0,1.41520233]
[1680495833980,0.01882722,27669.0,27668.0,1.46520233]
[1680495835318,0.01882722,27669.0,27668.0,1.43720233]
[1680495835536,0.01882722,27669.0,27668.0,1.46520233]
[1680495836235,0.01882722,27669.0,27668.0,1.41520233]
[1680495836669,0.01882722,27669.0,27668.0,1.46520233]
[1680495837446,0.01874561,27669.0,27668.0,1.46520233]
[1680495837834,0.01874561,27669.0,27668.0,1.8475931]
[1680495841116,0.01874561,27669.0,27668.0,1.46520233]
[1680495842196,0.01861056,27669.0,27668.0,1.46520233]
[1680495842880,0.19861056,27669.0,27668.0,1.46520233]
[1680495844441,0.19861056,27669.0,27668.0,1.43720233]
[1680495844643,0.19861056,27669.0,27668.0,1.46520233]
[1680495846188,8.19861056,27669.0,27668.0,1.46520233]
[1680495846387,8.19861056,27669.0,27668.0,1.41538233]
[1680495848085,8.19861056,27669.0,27668.0,1.23470233]
[1680495849174,8.19861056,27669.0,27668.0,1.41540233]
[1680495853556,8.19861056,27669.0,27668.0,1.23470233]
[1680495853773,8.19861056,27669.0,27668.0,1.19408833]
[1680495853999,8.19861056,27669.0,27668.0,1.23290933]
[1680495854632,8.19861056,27669.0,27668.0,1.19408833]
[1680495855062,8.79133797,27669.0,27668.0,0.88540833]
[1680495855301,8.6493631,27669.0,27668.0,0.50947297]
[1680495855946,8.6493631,27669.0,27668.0,0.48147297]
[1680495856154,8.7364631,27669.0,27668.0,0.50947297]
[1680495856381,8.7364631,27669.0,27668.0,0.48147297]
[1680495856571,8.7364631,27669.0,27668.0,0.50947297]
[1680495856776,8.7364631,27669.0,27668.0,0.48147297]
[1680495856986,8.7364631,27669.0,27668.0,0.74118422]
[1680495857200,8.7364631,27669.0,27668.0,0.54465897]
[1680495857401,8.7364631,27669.0,27668.0,0.48147297]
[1680495857615,8.7364631,27669.0,27668.0,0.79947297]
[1680495857820,8.7364631,27669.0,27668.0,0.83763697]
[1680495859735,8.7364631,27669.0,27668.0,0.79947297]
[1680495860169,8.7364631,27669.0,27668.0,1.05917054]
[1680495860349,8.7364631,27669.0,27668.0,1.09656255]
[1680495860988,8.7364631,27669.0,27668.0,1.09680955]
[1680495861216,8.7364631,27669.0,27668.0,1.47680955]
[1680495861474,8.6493631,27669.0,27668.0,1.43917055]
[1680495861691,8.6493631,27669.0,27668.0,1.47843163]
[1680495862249,8.6493631,27669.0,27668.0,1.43916163]
[1680495865138,8.64875752,27669.0,27668.0,1.47755981]
[1680495866342,8.64875752,27669.0,27668.0,1.21788497]
[1680495866818,8.64875752,27669.0,27668.0,1.47755531]
[1680495867876,8.64875752,27669.0,27668.0,1.21788497]
[1680495869370,8.64875752,27669.0,27668.0,1.47755073]
[1680495869592,8.64875752,27669.0,27668.0,1.21788497]
[1680495869785,8.64875752,27669.0,27668.0,1.91469243]
[1680495870311,8.64875752,27669.0,27668.0,1.53122254]
[1680495877085,8.64875752,27669.0,27668.0,1.22638497]
[1680495877297,8.64875752,27669.0,27668.0,1.6097197]
[1680495877745,8.64875752,27669.0,27668.0,1.6012197]
[1680495880380,8.64926752,27669.0,27668.0,1.6010397]
[1680495881031,8.64875752,27669.0,27668.0,1.6012197]
[1680495881241,8.64875752,27669.0,27668.0,1.7819297]
[1680495882147,8.64875752,27669.0,27668.0,1.39859497]
[1680495883014,8.64875752,27669.0,27668.0,1.38907497]
[1680495883686,7.19442833,27669.0,27668.0,1.17595399]
[1680495883904,4.9311417,27669.0,27668.0,1.43611582]
[1680495884121,3.27703501,27669.0,27668.0,1.43611582]
[1680495884341,2.59340501,27669.0,27668.0,1.72606341]
[1680495884594,2.59340501,27669.0,27668.0,1.43611582]
[1680495884595,2.13292901,27669.0,27668.0,1.43611582]
[1680495884813,1.44945101,27669.0,27668.0,1.43611582]
[1680495885031,1.01218501,27669.0,27668.0,1.45811582]
[1680495885245,0.59084601,27669.0,27668.0,1.48611582]
[1680495885466,0.00051,27670.0,27669.0,0.43]
[1680495885688,0.00051,27673.0,27669.0,1.78115333]
[1680495885955,0.00051,27673.0,27672.0,1.12931439]
[1680495886193,0.00051,27673.0,27672.0,1.47424839]
[1680495886405,0.00051,27673.0,27672.0,1.78274839]
[1680495886619,0.45075254,27674.0,27672.0,1.78261799]
[1680495886851,0.45075254,27674.0,27673.0,1.01600313]
[1680495887067,0.45075254,27674.0,27673.0,1.21475213]
[1680495887957,0.45075254,27674.0,27673.0,1.24275213]
[1680495888170,0.45075254,27674.0,27673.0,1.21475213]
[1680495888395,0.45075254,27674.0,27673.0,1.24275213]
[1680495889279,0.45075254,27674.0,27673.0,1.42341213]
[1680495890945,0.45075254,27674.0,27673.0,1.47836913]
[1680495891604,0.45075254,27674.0,27673.0,1.45036913]
[1680495892041,0.45075254,27674.0,27673.0,1.47836913]
[1680495893410,0.45075254,27674.0,27673.0,1.45036913]
[1680495893638,0.45075254,27674.0,27673.0,1.47836913]
[1680495894776,0.45075254,27674.0,27673.0,1.45036913]
[1680495895195,0.45075254,27674.0,27673.0,1.47836913]
[1680495896583,0.45075254,27674.0,27673.0,1.56536913]
[1680495898864,0.45075254,27674.0,27673.0,1.56534913]
[1680495902851,0.45075254,27674.0,27673.0,1.53734913]
[1680495903034,0.45075254,27674.0,27673.0,1.56534913]
[1680495905785,0.00156618,27675.0,27673.0,1.94845658]
[1680495906013,0.45024254,27678.0,27675.0,0.43]
[1680495906236,0.45075254,27678.0,27677.0,0.73497497]
[1680495906454,0.45075254,27678.0,27677.0,1.27124297]
[1680495906650,0.45075254,27678.0,27677.0,1.27974297]
[1680495907124,0.45075254,27678.0,27677.0,1.53855954]
[1680495907351,0.26236154,27678.0,27677.0,1.27986297]
[1680495907569,0.02679903,27679.0,27678.0,0.43]
[1680495907784,0.02628903,27679.0,27678.0,1.62320268]
[1680495908230,0.02376001,27682.0,27678.0,1.55640779]
[1680495908456,0.01847601,27682.0,27681.0,0.73497497]
[1680495908702,0.01847601,27682.0,27681.0,1.88618997]
[1680495908920,0.01847601,27682.0,27681.0,1.83618997]
[1680495909594,0.01847601,27682.0,27681.0,1.86436997]
[1680495910256,0.01847601,27682.0,27681.0,2.12075365]
[1680495910475,0.01847601,27682.0,27681.0,2.84327065]
[1680495911131,0.01847601,27682.0,27681.0,3.05880526]
[1680495911355,0.01847601,27682.0,27681.0,3.03080526]
[1680495911582,0.01847601,27682.0,27681.0,3.05880526]
[1680495911800,0.01847601,27682.0,27681.0,2.84327065]
[1680495912020,0.01417601,27682.0,27681.0,2.84309065]
[1680495912725,0.01417601,27682.0,27681.0,2.89599305]
[1680495912942,0.01417601,27682.0,27681.0,2.86799305]
[1680495914031,0.01417601,27682.0,27681.0,2.89599305]
[1680495915129,0.01417601,27682.0,27681.0,2.86799305]
[1680495915780,0.01417601,27682.0,27681.0,2.89599305]
[1680495916450,0.01417601,27682.0,27681.0,2.80949305]
[1680495916916,0.01417601,27682.0,27681.0,2.78149305]
[1680495917141,0.01417601,27682.0,27681.0,3.02495118]
[1680495917369,0.01417601,27682.0,27681.0,2.99695118]
[1680495917604,0.01417601,27682.0,27681.0,3.02495118]
[1680495917842,0.01417601,27682.0,27681.0,2.99695118]
[1680495918061,0.01417601,27682.0,27681.0,3.02495118]
[1680495918494,0.01417601,27682.0,27681.0,2.78149305]
[1680495918815,0.01417601,27682.0,27681.0,2.80949305]
[1680495920168,0.01293602,27684.0,27683.0,0.38]
[1680495920393,0.01293602,27684.0,27683.0,1.4896241]
[1680495920394,0.00504602,27684.0,27683.0,1.4896241]
[1680495920614,0.02427001,27690.0,27685.0,0.38]
[1680495920858,0.02376001,27690.0,27689.0,0.73497497]
[1680495921083,0.02427001,27690.0,27689.0,1.01136396]
[1680495921303,0.02427001,27690.0,27689.0,1.19750997]
[1680495921756,0.02376001,27690.0,27689.0,1.19750997]
[1680495923481,0.02376001,27690.0,27689.0,1.22550997]
[1680495923686,0.02376001,27690.0,27689.0,1.19750997]
[1680495923987,0.02376001,27690.0,27689.0,1.22550997]
[1680495925310,0.01426922,27690.0,27689.0,1.22550997]
[1680495927221,0.01426922,27690.0,27689.0,1.19750997]
[1680495927452,0.01426922,27690.0,27689.0,1.23400997]
[1680495928816,0.01426922,27690.0,27689.0,1.20600997]
[1680495929220,0.01426922,27690.0,27689.0,1.23400997]
[1680495930723,0.01426922,27690.0,27689.0,1.22550997]
[1680495931350,0.01426922,27690.0,27689.0,1.41457997]
[1680495932332,0.01426922,27690.0,27689.0,1.38657997]
[1680495932531,0.01426922,27690.0,27689.0,1.41457997]
[1680495934080,0.01426922,27690.0,27689.0,1.41475997]
[1680495936166,0.01426922,27690.0,27689.0,1.22568997]
[1680495936387,0.01426922,27690.0,27689.0,1.31186384]
[1680495936614,0.01426922,27690.0,27689.0,0.54568997]
[1680495936615,0.24324409,27690.0,27689.0,0.54568997]
[1680495936836,0.10126922,27690.0,27689.0,0.50955697]
[1680495937060,0.10126922,27690.0,27689.0,0.154402]
[1680495937500,0.10177922,27690.0,27689.0,0.126402]
[1680495937718,0.10177922,27690.0,27689.0,0.154402]
[1680495937977,0.10177922,27690.0,27689.0,0.126402]
[1680495938195,0.10177922,27690.0,27689.0,0.144402]
[1680495940376,0.10177922,27690.0,27689.0,0.49937697]
[1680495940645,0.10177922,27690.0,27689.0,0.53685497]
[1680495943488,0.10177922,27690.0,27689.0,0.51885497]
[1680495943918,0.10177922,27690.0,27689.0,0.53585497]